bitfinex/quotes_BTCUSD_20260310
["timestamp","ask_amount","ask_price","bid_price","bid_amount"]
[1773138482854,0.1098004,70830.0,70817.0,0.27912231]
[1773138483130,0.03,70828.0,70817.0,0.27912231]
[1773138483521,0.03,70826.0,70817.0,0.27912231]
[1773138484005,0.01381515,70833.0,70817.0,0.07060355]
[1773138484150,0.07078962,70832.0,70818.0,0.28408319]
[1773138484350,0.01381515,70831.0,70818.0,0.28408319]
[1773138484557,0.03,70830.0,70818.0,0.28408319]
[1773138485259,0.03,70830.0,70820.0,0.05320049]
[1773138485516,0.03,70830.0,70821.0,0.28408319]
[1773138485694,0.03,70830.0,70823.0,0.28408319]
[1773138486370,0.0002,70832.0,70823.0,0.28408319]
[1773138487577,0.01377437,70833.0,70823.0,0.28408319]
[1773138487772,0.0135966,70833.0,70823.0,0.28408319]
[1773138488183,0.03,70832.0,70823.0,0.35468124]
[1773138489132,0.03,70834.0,70823.0,0.35468124]
[1773138489489,0.07058171,70840.0,70824.0,0.28408319]
[1773138489825,0.07058358,70838.0,70826.0,0.28408319]
[1773138490244,0.03,70837.0,70826.0,0.28408319]
[1773138491184,0.07058358,70838.0,70837.0,0.00035559]
[1773138491389,0.01365277,70837.0,70835.0,0.00144]
[1773138491796,0.01380787,70836.0,70835.0,0.00144]
[1773138492011,0.04380787,70836.0,70835.0,0.00115689]
[1773138492415,0.09439145,70840.0,70835.0,0.00115689]
[1773138492642,0.01380787,70843.0,70835.0,0.00115689]
[1773138492845,0.001,70838.0,70835.0,0.00115689]
[1773138493061,0.00063235,70838.0,70835.0,0.28524008]
[1773138493263,0.001,70836.0,70835.0,0.00115689]
[1773138493465,0.34507245,70844.0,70835.0,0.00115689]
[1773138493466,0.03,70840.0,70835.0,0.00115689]
[1773138493665,0.03,70838.0,70835.0,0.00115689]
[1773138493839,0.04376754,70838.0,70835.0,0.00115689]
[1773138494068,0.03,70838.0,70835.0,0.00115689]
[1773138494557,0.03,70841.0,70835.0,0.00115689]
[1773138494753,0.03,70841.0,70835.0,0.07174322]
[1773138495358,0.03,70841.0,70836.0,0.28408319]
[1773138495548,0.01393464,70844.0,70841.0,0.00035571]
[1773138495743,0.03,70843.0,70841.0,0.00179571]
[1773138496021,0.0001671,70844.0,70841.0,0.00144]
[1773138496222,0.0137285,70843.0,70841.0,0.00144]
[1773138496521,0.0138956,70844.0,70842.0,0.00144]
[1773138499334,0.0003671,70844.0,70842.0,0.00144]
[1773138500098,0.03,70843.0,70842.0,0.00144]
[1773138501815,0.01402179,70844.0,70843.0,0.0003557]
[1773138502423,0.01402179,70844.0,70842.0,0.00144]
[1773138502845,0.03,70838.0,70826.0,0.07059554]
[1773138503021,0.0705786,70843.0,70824.0,0.07059554]
[1773138503022,0.26712508,70840.0,70824.0,0.07059554]
[1773138503228,0.01361889,70837.0,70825.0,0.00144]
[1773138503420,0.26568508,70834.0,70826.0,0.00144]
[1773138503619,0.01358652,70832.0,70826.0,0.00144]
[1773138503835,0.03,70829.0,70823.0,0.07081825]
[1773138504035,0.04358652,70829.0,70824.0,0.00144]
[1773138504550,0.04358652,70829.0,70826.0,0.001]
[1773138504895,0.04358652,70829.0,70827.0,0.00144]
[1773138505091,0.04358652,70829.0,70823.0,0.07081825]
[1773138505243,0.04358652,70829.0,70828.0,0.00144]
[1773138505661,0.03,70826.0,70823.0,0.00022]
[1773138505906,0.0435521,70826.0,70824.0,0.00144]
[1773138506862,0.03,70825.0,70824.0,0.00144]
[1773138508057,0.03,70826.0,70824.0,0.00144]
[1773138508285,0.05719864,70825.0,70824.0,0.00144]
[1773138508947,0.03,70825.0,70819.0,0.0706025]
[1773138509152,0.07059267,70829.0,70820.0,0.00144]
[1773138509153,0.05719864,70821.0,70820.0,0.00144]
[1773138510090,0.03,70819.0,70818.0,0.00022]
[1773138510470,0.05721151,70819.0,70818.0,0.00166]
[1773138510917,0.05721151,70819.0,70818.0,0.00022]
[1773138511060,0.05721151,70819.0,70818.0,0.00166]
[1773138511689,0.05721151,70823.0,70818.0,0.00166]
[1773138512044,0.03,70821.0,70818.0,0.00166]
[1773138512283,0.02866291,70825.0,70821.0,0.00026015]
[1773138512677,0.02866291,70825.0,70818.0,0.00166]
[1773138513124,0.03,70824.0,70818.0,0.00166]
[1773138518987,0.02856954,70825.0,70818.0,0.00166]
[1773138519132,0.03,70824.0,70818.0,0.00166]
[1773138520002,0.07059377,70828.0,70818.0,0.07226321]
[1773138520191,0.07058711,70835.0,70819.0,0.27431762]
[1773138520348,0.02853941,70834.0,70819.0,0.27431762]
[1773138521042,0.03,70831.0,70820.0,0.07060152]
[1773138521436,0.05853941,70831.0,70820.0,0.34491914]
[1773138521884,0.03,70831.0,70820.0,0.34491914]
[1773138522090,0.03,70829.0,70820.0,0.34491914]
[1773138522470,0.0001205,70833.0,70821.0,0.27431762]
[1773138523042,0.03,70832.0,70822.0,0.07059953]
[1773138523256,0.05850894,70832.0,70822.0,0.07059953]
[1773138523451,0.03,70830.0,70822.0,0.07059953]
[1773138525730,0.0002,70829.0,70822.0,0.07059953]
[1773138526775,0.03,70835.0,70823.0,0.27431762]
[1773138527332,0.0001459,70841.0,70824.0,0.00144]
[1773138527553,0.0001459,70841.0,70831.0,0.27431762]
[1773138527732,0.0301459,70841.0,70833.0,0.27431762]
[1773138527932,0.0301459,70841.0,70834.0,0.00144]
[1773138528129,0.04431241,70841.0,70834.0,0.00144]
[1773138528649,0.04431241,70841.0,70834.0,0.07202746]
[1773138529674,0.04431241,70841.0,70834.0,0.00144]
[1773138530284,0.04431241,70841.0,70833.0,0.27431762]
[1773138530435,0.04431241,70841.0,70835.0,0.00144]
[1773138530637,0.03,70840.0,70835.0,0.00144]
[1773138530859,0.03,70838.0,70835.0,0.00144]
[1773138531983,0.03,70837.0,70835.0,0.00144]
[1773138532182,0.0512391,70837.0,70835.0,0.00144]
[1773138532424,0.03,70837.0,70835.0,0.00144]
[1773138533177,0.0303459,70841.0,70835.0,0.00144]
[1773138533626,0.0303459,70841.0,70834.0,0.07058752]
[1773138533924,0.0303459,70841.0,70836.0,0.00144]
[1773138534130,0.03,70839.0,70836.0,0.00144]
[1773138536402,0.03,70838.0,70836.0,0.00144]
[1773138537303,0.03,70840.0,70836.0,0.00144]
[1773138537504,0.03,70838.0,70836.0,0.00144]
[1773138538333,0.05203106,70838.0,70836.0,0.00144]
[1773138539338,0.0003459,70841.0,70836.0,0.00144]
[1773138539562,0.03,70839.0,70836.0,0.00144]
[1773138541380,0.0003459,70841.0,70836.0,0.00144]
[1773138541681,0.0003459,70841.0,70837.0,0.28765459]
[1773138542398,0.0003459,70841.0,70836.0,0.00144]
[1773138542543,0.03,70843.0,70836.0,0.00144]
[1773138542745,0.07077782,70844.0,70837.0,0.28765459]
[1773138543202,0.07077782,70844.0,70836.0,0.00144]
[1773138543203,0.02183965,70843.0,70836.0,0.00144]
[1773138543663,0.03,70842.0,70836.0,0.00144]
[1773138544749,0.0002,70844.0,70837.0,0.07058458]
[1773138544954,0.0002,70844.0,70838.0,0.29295157]
[1773138545651,0.02173091,70847.0,70838.0,0.29295157]
[1773138545885,0.10071852,70849.0,70838.0,0.29295157]
[1773138547414,0.10071852,70849.0,70840.0,0.29295157]
[1773138548446,0.02156963,70842.0,70840.0,0.00144]
[1773138548653,0.03,70837.0,70827.0,0.07059454]
[1773138548864,0.03,70837.0,70828.0,0.00144]
[1773138549266,0.03,70837.0,70827.0,0.36354611]
[1773138549267,0.12215459,70837.0,70827.0,0.36354611]
[1773138549465,0.12215459,70837.0,70829.0,0.00144]
[1773138549628,0.05156963,70837.0,70829.0,0.00144]
[1773138549823,0.05156963,70837.0,70830.0,0.00144]
[1773138550030,0.07058374,70838.0,70830.0,0.00144]
[1773138550031,0.03,70835.0,70830.0,0.00144]
[1773138550244,0.03,70835.0,70827.0,0.36354611]
[1773138550245,0.05154726,70835.0,70827.0,0.36354611]
[1773138550446,0.05154726,70835.0,70831.0,0.00144]
[1773138550787,0.05154726,70835.0,70827.0,0.36354611]
[1773138550977,0.05154726,70835.0,70832.0,0.00144]
[1773138551355,0.07058179,70840.0,70827.0,0.36354611]
[1773138551356,0.03,70840.0,70833.0,0.29439157]
[1773138551874,0.03,70840.0,70834.0,0.00144]
[1773138552179,0.03,70840.0,70836.0,0.00022]
[1773138552376,0.03,70839.0,70836.0,0.00022]
[1773138553360,0.03,70838.0,70836.0,0.00022]
[1773138554402,0.04483445,70837.0,70836.0,0.00022]
[1773138556189,0.03,70836.0,70834.0,0.07202727]
[1773138556399,0.04483445,70836.0,70834.0,0.07202727]
[1773138556592,0.04483445,70836.0,70830.0,0.0705911]
[1773138556811,0.04483445,70836.0,70835.0,0.00144]
[1773138559042,0.03,70836.0,70835.0,0.00144]
[1773138559824,0.01483445,70840.0,70835.0,0.00144]
[1773138560024,0.04483445,70839.0,70836.0,0.00022]
[1773138560619,0.03,70837.0,70835.0,0.00106734]
[1773138561024,0.0002,70842.0,70836.0,0.07043737]
[1773138561222,0.01503445,70842.0,70836.0,0.07043737]
[1773138561665,0.03,70841.0,70835.0,0.00106734]
[1773138561851,0.03,70841.0,70835.0,0.00144]
[1773138561852,0.04483445,70841.0,70835.0,0.00144]
[1773138563238,0.04483445,70836.0,70835.0,0.00144]
[1773138563774,0.03,70836.0,70835.0,0.00144]
[1773138564426,0.03,70837.0,70835.0,0.00144]
[1773138565125,0.03,70837.0,70834.0,0.00144]
[1773138565126,0.10058466,70837.0,70834.0,0.00144]
[1773138565342,0.03,70829.0,70820.0,0.07060074]
[1773138565562,0.26813924,70830.0,70822.0,0.00144]
[1773138565563,0.03,70827.0,70822.0,0.00144]
[1773138565769,0.03,70825.0,70822.0,0.00144]
[1773138567156,0.01483445,70826.0,70814.0,0.07060719]
[1773138567157,0.01483445,70821.0,70814.0,0.07060719]
[1773138567369,0.10059985,70822.0,70810.0,0.07083082]
[1773138567370,0.01483445,70816.0,70810.0,0.00022]
[1773138567607,0.03,70810.0,70809.0,0.00166]
[1773138567984,0.04483445,70810.0,70804.0,0.07083713]
[1773138568186,0.04483445,70810.0,70808.0,0.00144]
[1773138568413,0.03,70810.0,70808.0,0.00144]
[1773138568589,0.03,70810.0,70809.0,0.00144]
[1773138568988,0.03,70810.0,70808.0,0.0004688]
[1773138569193,0.07061249,70809.0,70805.0,0.0003765]
[1773138569408,0.03,70806.0,70805.0,0.00144]
[1773138569590,0.00741723,70809.0,70805.0,0.00144]
[1773138569792,0.07061249,70809.0,70806.0,0.29295157]
[1773138570120,0.07061169,70810.0,70806.0,0.29295157]
[1773138570320,0.07061169,70810.0,70803.0,0.00022]
[1773138570321,0.00741723,70807.0,70803.0,0.00022]
[1773138570520,0.00741723,70807.0,70804.0,0.00144]
[1773138570677,0.00741723,70807.0,70805.0,0.00144]
[1773138571531,0.00741723,70805.0,70804.0,0.00144]
[1773138571908,0.03,70806.0,70804.0,0.00144]
[1773138572279,0.03741723,70806.0,70804.0,0.00144]
[1773138573361,0.00741723,70805.0,70796.0,0.0057765]
[1773138573563,0.00741723,70805.0,70789.0,0.07085214]
[1773138573564,0.00741723,70801.0,70789.0,0.07085214]
[1773138573696,0.07061707,70805.0,70789.0,0.00022]
[1773138573697,0.03,70796.0,70789.0,0.00022]
[1773138573897,0.00741723,70795.0,70789.0,0.00022]
[1773138575435,0.07062359,70798.0,70789.0,0.00022]
[1773138575651,0.07062359,70798.0,70790.0,0.00022]
[1773138575852,0.07062359,70798.0,70790.0,0.28763873]
[1773138576485,0.03,70797.0,70790.0,0.28763873]
[1773138577395,0.03,70795.0,70790.0,0.00022]
[1773138577598,0.00741723,70794.0,70790.0,0.00022]
[1773138577984,0.07803975,70799.0,70791.0,0.28741873]
[1773138578190,0.12786701,70810.0,70791.0,0.28741873]
[1773138578191,0.0706095,70812.0,70793.0,0.28741873]
[1773138578532,0.03,70811.0,70793.0,0.28741873]
[1773138579327,0.00741723,70810.0,70793.0,0.28741873]
[1773138579525,0.03,70806.0,70791.0,0.07063044]
[1773138579737,0.07061249,70809.0,70792.0,0.00144]
[1773138579738,0.00741723,70800.0,70792.0,0.00144]
[1773138580334,0.00741723,70800.0,70790.0,0.28763873]
[1773138580512,0.00741723,70800.0,70792.0,0.00144]
[1773138581409,0.00741723,70800.0,70789.0,0.00022]
[1773138581609,0.00741723,70800.0,70761.0,0.38802722]
[1773138581610,0.03,70795.0,70792.0,0.00144]
[1773138581811,0.00741723,70794.0,70785.0,0.35805329]
[1773138582042,0.00741723,70794.0,70786.0,0.00144]
[1773138582240,0.00741723,70794.0,70786.0,0.28885873]
[1773138582839,0.00741723,70794.0,70789.0,0.00022]
[1773138583209,0.00741723,70794.0,70790.0,0.00144]
[1773138583628,0.03,70797.0,70790.0,0.00144]
[1773138584592,0.07062146,70801.0,70790.0,0.00144]
[1773138584593,0.00450706,70834.0,70820.0,0.05317576]
[1773138584788,0.00450706,70828.0,70803.0,0.00258277]
[1773138584930,0.00450706,70828.0,70815.0,0.28741873]
[1773138585140,0.03,70819.0,70813.0,0.00144]
[1773138585336,0.03,70819.0,70810.0,0.00144]
[1773138585585,0.03,70819.0,70812.0,0.0706095]
[1773138585814,0.03,70819.0,70813.0,0.26758901]
[1773138586022,0.00144,70825.0,70814.0,0.00258277]
[1773138586227,0.0002392,70835.0,70815.0,0.00258277]
[1773138586434,0.0050504,70835.0,70816.0,0.26758901]
[1773138586643,0.0050504,70835.0,70820.0,0.001]
[1773138586644,0.27905138,70829.0,70820.0,0.001]
[1773138586846,0.0348112,70828.0,70820.0,0.001]
[1773138587047,0.0348112,70828.0,70817.0,0.26902901]
[1773138587660,0.0348112,70828.0,70817.0,0.26758901]
[1773138587863,0.03,70827.0,70818.0,0.07060351]
[1773138587997,0.03,70827.0,70819.0,0.26758901]
[1773138588743,0.0048112,70828.0,70819.0,0.33819119]
[1773138590640,0.0048112,70828.0,70819.0,0.33819151]
[1773138591182,0.0048112,70828.0,68588.0,0.00012]
[1773138591183,0.0048112,70828.0,70814.0,0.07060685]
[1773138591304,0.0048112,70828.0,70715.0,0.59102298]
[1773138591305,0.27905138,70823.0,70801.0,0.07062047]
[1773138591513,0.03,70815.0,70801.0,0.07062047]
[1773138591720,0.0062512,70814.0,70801.0,0.07062047]
[1773138591916,0.0062512,70814.0,70802.0,0.26758901]
[1773138593820,0.0062512,70814.0,70803.0,0.07061847]
[1773138594025,0.0062512,70814.0,70804.0,0.26758901]
[1773138594485,0.00144,70814.0,70804.0,0.26758901]
[1773138594628,0.27905138,70833.0,70807.0,0.00258277]
[1773138594861,0.27905138,70830.0,70811.0,0.00258277]
[1773138595200,0.27905138,70829.0,70812.0,0.26758901]
[1773138595405,0.0048112,70827.0,70812.0,0.26758901]
[1773138595546,0.0048112,70825.0,70812.0,0.26758901]
[1773138595742,0.00144,70824.0,70812.0,0.26758901]
[1773138595918,0.00144,70824.0,70813.0,0.0706085]
[1773138596127,0.00144,70824.0,70814.0,0.26758901]
[1773138596637,0.00144,70824.0,70815.0,0.00258277]
[1773138596859,0.00144,70824.0,70816.0,0.27017178]
[1773138597061,0.00144,70828.0,70816.0,0.26758901]
[1773138597259,0.00144,70828.0,70813.0,0.0706085]
[1773138597260,0.27905138,70826.0,70814.0,0.00144]
[1773138597535,0.0048112,70825.0,70814.0,0.00144]
[1773138597735,0.0048112,70825.0,70813.0,0.0706085]
[1773138597939,0.0048112,70825.0,70814.0,0.00144]
[1773138598146,0.0048112,70825.0,70814.0,0.07204713]
[1773138598324,0.0048112,70825.0,70814.0,0.07060713]
[1773138599256,0.0048112,70825.0,70801.0,0.07062047]
[1773138599257,0.0048112,70823.0,70801.0,0.07062047]
[1773138599444,0.27905138,70820.0,70804.0,0.00144]
[1773138599685,0.27905138,70816.0,70804.0,0.00144]
[1773138599886,0.00144,70819.0,70804.0,0.00144]
[1773138599887,0.0048112,70813.0,70804.0,0.00144]
[1773138600313,0.0048112,70813.0,70801.0,0.07062047]
[1773138600314,0.0048112,70810.0,70789.0,0.00166]
[1773138600521,0.0048112,70806.0,70790.0,0.00144]
[1773138600723,0.0048112,70806.0,70791.0,0.26758901]
[1773138600912,0.0048112,70813.0,70793.0,0.26758901]
[1773138601148,0.0048112,70813.0,70790.0,0.16103516]
[1773138601149,0.0048112,70813.0,70795.0,0.26758901]
[1773138601359,0.0048112,70813.0,70796.0,0.00258277]
[1773138601566,0.0706048,70817.0,70799.0,0.26758901]
[1773138601780,0.0048112,70816.0,70801.0,0.26758901]
[1773138601991,0.00144,70822.0,70800.0,0.00144]
[1773138601992,0.00023,70825.0,70805.0,0.00258277]
[1773138602191,0.00023,70825.0,70803.0,0.35291956]
[1773138602192,0.00144,70829.0,70814.0,0.00258277]
[1773138602421,0.00144,70829.0,70812.0,0.0706095]
[1773138602422,0.0004392,70835.0,70817.0,0.26758901]
[1773138602594,0.0018792,70835.0,70821.0,0.26758901]
[1773138602864,0.0018792,70835.0,70823.0,0.26758901]
[1773138603015,0.0004392,70835.0,70823.0,0.26758901]
[1773138603215,0.0004392,70835.0,70824.0,0.0022863]
[1773138603533,0.0004392,70835.0,70825.0,0.26758901]
[1773138604458,0.0002,70829.0,70824.0,0.00144]
[1773138604673,0.0002,70829.0,70810.0,0.15959516]
[1773138604674,0.03,70827.0,70800.0,0.00023]
[1773138604870,0.0002,70829.0,70800.0,0.00023]
[1773138604871,0.0048112,70818.0,70800.0,0.00023]
[1773138605108,0.03,70811.0,70795.0,0.00022]
[1773138605432,0.0048112,70803.0,70795.0,0.00022]
[1773138605707,0.0048112,70803.0,70795.0,0.07084625]
[1773138605917,0.00023,70825.0,70795.0,0.07084625]
[1773138605918,0.00023,70825.0,70796.0,0.07624541]
[1773138606123,0.0048112,70812.0,70797.0,0.29338687]
[1773138606325,0.03,70808.0,70797.0,0.29338687]
[1773138606532,0.03,70808.0,70797.0,0.36401131]
[1773138606935,0.0348112,70808.0,70797.0,0.36401131]
[1773138607695,0.0048112,70807.0,70797.0,0.36401131]
[1773138608301,0.03,70807.0,70797.0,0.36629761]
[1773138608694,0.07686071,70812.0,70797.0,0.36629761]
[1773138609191,0.07542071,70812.0,70797.0,0.36629761]
[1773138609445,0.03,70811.0,70797.0,0.36629761]
[1773138610708,0.03,70809.0,70797.0,0.36629761]
[1773138611368,0.03,70809.0,70797.0,0.36651761]
[1773138612606,0.03,70809.0,70797.0,0.36423131]
[1773138613829,0.03,70808.0,70797.0,0.36423131]
[1773138614467,0.00144,70813.0,70799.0,0.29338687]
[1773138614686,0.00144,70818.0,70801.0,0.3642483]
[1773138614899,0.03471264,70823.0,70804.0,0.29338687]
[1773138615100,0.00144,70822.0,70808.0,0.29338687]
[1773138615332,0.00144,70822.0,70809.0,0.0037263]
[1773138615502,0.00144,70822.0,70811.0,0.07061049]
[1773138615656,0.03,70822.0,70812.0,0.29338687]
[1773138616678,0.03,70821.0,70812.0,0.29338687]
[1773138617082,0.00167,70825.0,70812.0,0.29567317]
[1773138617550,0.00023,70825.0,70812.0,0.29567317]
[1773138617725,0.00023,70825.0,70814.0,0.29338687]
[1773138618137,0.0002,70822.0,70814.0,0.29338687]
[1773138619694,0.0002,70822.0,70816.0,0.29338687]
[1773138620357,0.03916384,70843.0,70816.0,0.0022863]
[1773138620477,0.00023,70850.0,70815.0,0.0706065]
[1773138620478,0.00471264,70841.0,70821.0,0.0022863]
[1773138620680,0.26751704,70846.0,70824.0,0.29338687]
[1773138620681,0.00471264,70845.0,70824.0,0.29338687]
[1773138621080,0.00471264,70845.0,70826.0,0.29567317]
[1773138621282,0.00471264,70841.0,70826.0,0.29567317]
[1773138621831,0.00471264,70841.0,70828.0,0.29338687]
[1773138622637,0.00471264,70841.0,70830.0,0.29338687]
[1773138623288,0.00471264,70844.0,70830.0,0.29338687]
[1773138624045,0.07201471,70847.0,70831.0,0.36541743]
[1773138624240,0.00471264,70845.0,70831.0,0.36541743]
[1773138624940,0.26751704,70845.0,70831.0,0.36541743]
[1773138625184,0.00471264,70843.0,70831.0,0.36541743]
[1773138626651,0.00144,70845.0,70831.0,0.36541743]
[1773138627031,0.00471264,70844.0,70831.0,0.36541743]
[1773138627595,0.15959516,70870.0,70831.0,0.36541743]
[1773138627596,0.00471264,70858.0,70833.0,0.29338687]
[1773138627736,0.00471264,70858.0,70832.0,0.3642483]
[1773138627737,0.00144,70855.0,70835.0,0.29338687]
[1773138627935,0.00144,70855.0,70838.0,0.00465914]
[1773138628131,0.00144,70855.0,70839.0,0.29338687]
[1773138628336,0.00615264,70855.0,70839.0,0.29338687]
[1773138628537,0.00471264,70853.0,70840.0,0.36540846]
[1773138628725,0.00471264,70853.0,70826.0,0.29338687]
[1773138628726,0.00471264,70849.0,70826.0,0.29338687]
[1773138628936,0.26751704,70846.0,70826.0,0.29338687]
[1773138629146,0.00144,70851.0,70826.0,0.29348087]
[1773138629147,0.26751704,70842.0,70826.0,0.29348087]
[1773138629454,0.00471264,70840.0,70826.0,0.29333266]
[1773138629652,0.00471264,70840.0,70827.0,0.00144]
[1773138630254,0.00471264,70840.0,70827.0,0.001534]
[1773138630455,0.03,70840.0,70828.0,0.07059355]
[1773138630656,0.00471264,70839.0,70828.0,0.07059355]
[1773138631682,0.00471264,70839.0,70829.0,0.00144]
[1773138632779,0.00471264,70839.0,70830.0,0.07059155]
[1773138634090,0.03,70840.0,70830.0,0.07059155]
[1773138634469,0.00615264,70843.0,70827.0,0.07068555]
[1773138634470,0.00471264,70838.0,70827.0,9.4e-05]
[1773138634674,0.00471264,70835.0,70828.0,0.00144]
[1773138634877,0.03,70836.0,70829.0,0.07059255]
[1773138635089,0.07057376,70848.0,70829.0,0.07059255]
[1773138635090,0.01087816,70882.0,70829.0,0.07059255]
[1773138635284,0.00353,70900.0,70870.0,0.15959516]
[1773138635490,0.00353,70900.0,70882.0,0.27599383]
[1773138635728,0.00353,70900.0,70886.0,0.27599383]
[1773138636017,0.00353,70900.0,70883.0,0.14019582]
[1773138636018,0.03,70890.0,70872.0,0.11215721]
[1773138636235,0.03,70885.0,70874.0,0.27599383]
[1773138637029,0.03,70885.0,70876.0,0.27599383]
[1773138637231,0.03,70884.0,70876.0,0.27599383]
[1773138638351,0.32469209,70890.0,70876.0,0.27599383]
[1773138638672,0.07405198,70900.0,70880.0,0.27599383]
[1773138638673,0.00353,70900.0,70880.0,0.27599383]
[1773138638901,0.00471264,70898.0,70881.0,0.0012918]
[1773138639020,0.00471264,70897.0,70883.0,0.27599383]
[1773138639220,0.50779575,70940.0,70883.0,0.27584575]
[1773138639459,0.01063961,70948.0,70882.0,0.07053977]
[1773138639460,0.28997945,70948.0,70909.0,0.33733355]
[1773138639623,0.28997945,70948.0,70934.0,0.28827389]
[1773138639829,0.28997945,70948.0,70933.0,0.00144]
[1773138639830,0.28997945,70944.0,70933.0,0.00144]
[1773138640074,0.00455963,70941.0,70930.0,0.00144]
[1773138640288,0.00455963,70937.0,70930.0,0.00144]
[1773138640491,0.03,70933.0,70930.0,0.00144]
[1773138640864,0.31997945,70933.0,70930.0,0.00144]
[1773138641333,0.31997945,70933.0,70910.0,0.15959516]
[1773138641334,0.03,70930.0,70910.0,0.07051191]
[1773138641464,0.03,70922.0,70911.0,0.00144]
[1773138641660,0.31997945,70920.0,70908.0,0.00562]
[1773138641871,0.31997945,70920.0,70908.0,0.00706]
[1773138641872,0.00455963,70919.0,70908.0,0.00706]
[1773138642067,0.03,70915.0,70908.0,0.00562]
[1773138642257,0.31997945,70915.0,70909.0,0.00144]
[1773138642457,0.31997945,70915.0,70908.0,0.00706]
[1773138642701,0.31997945,70915.0,70908.0,0.00562]
[1773138642910,0.31997945,70915.0,70908.0,0.00706]
[1773138645355,0.03,70911.0,70908.0,0.00706]
[1773138645896,0.03,70911.0,70909.0,0.00144]
[1773138646304,0.32453908,70910.0,70908.0,0.00144]
[1773138646961,0.31997945,70910.0,70891.0,0.4078636]
[1773138647168,0.31997945,70910.0,70902.0,0.00144]
[1773138648799,0.03,70909.0,70902.0,0.30141243]
[1773138649151,0.0002,70915.0,70902.0,0.37193167]
[1773138653761,0.10072747,70925.0,70903.0,0.00473828]
[1773138653920,0.10072747,70925.0,70906.0,0.29997243]
[1773138654120,0.39044251,70925.0,70906.0,0.30471071]
[1773138654319,0.03,70923.0,70906.0,0.29997243]
[1773138654507,0.00498624,70918.0,70902.0,0.07195924]
[1773138654707,0.32470128,70915.0,70902.0,0.07195924]
[1773138654935,0.32470128,70915.0,70902.0,0.37193167]
[1773138655957,0.07072747,70925.0,70902.0,0.37193167]
[1773138655958,0.03023,70925.0,70902.0,0.37193167]
[1773138656161,0.03,70918.0,70902.0,0.37193167]
[1773138656362,0.00498624,70917.0,70902.0,0.37193167]
[1773138656935,0.00498624,70917.0,70902.0,0.37293167]
[1773138657174,0.00498624,70917.0,70902.0,0.37193167]
[1773138657903,0.03,70912.0,70902.0,0.07195924]
[1773138658054,0.03,70910.0,70902.0,0.07195924]
[1773138658441,0.03,70910.0,70902.0,0.37193167]
[1773138659092,0.29470128,70917.0,70902.0,0.37193167]
[1773138659093,0.03498624,70916.0,70902.0,0.37193167]
[1773138659479,0.0002,70914.0,70902.0,0.37193167]
[1773138659681,0.00498624,70953.0,70910.0,0.29997243]
[1773138659882,0.0018832,70954.0,70932.0,0.42694177]
[1773138660094,0.00144,70949.0,70935.0,0.30471071]
[1773138660263,0.00144,70949.0,70918.0,0.52350455]
[1773138660264,0.03,70944.0,70918.0,0.52350455]
[1773138660652,0.03,70933.0,70918.0,0.29997243]
[1773138660855,0.03,70931.0,70918.0,0.29997243]
[1773138661872,0.03,70930.0,70918.0,0.29997243]
[1773138662068,0.03,70930.0,70919.0,0.07050296]
[1773138662777,0.28971504,70929.0,70928.0,0.00199999]
[1773138663000,0.07048853,70934.0,70914.0,0.07050495]
[1773138663001,0.00498624,70928.0,70914.0,0.07050495]
[1773138663214,0.28971504,70925.0,70913.0,0.07050793]
[1773138663380,0.31971504,70924.0,70912.0,0.37048233]
[1773138663579,0.00144,70923.0,70912.0,0.29997243]
[1773138663808,0.00144,70923.0,70911.0,0.07051092]
[1773138663809,0.32839432,70921.0,70911.0,0.07051092]
[1773138664137,0.32839432,70921.0,70910.0,0.07051173]
[1773138664461,0.2572716,70921.0,70910.0,0.07051173]
[1773138664661,0.00642624,70923.0,70910.0,0.07051173]
[1773138664864,0.03,70922.0,70910.0,0.07051173]
[1773138665270,0.03,70922.0,70911.0,0.16705282]
[1773138665770,0.03,70931.0,70911.0,0.16705282]
[1773138666012,0.00144,70930.0,70913.0,0.2921115]
[1773138666164,0.32839432,70929.0,70914.0,0.36261943]
[1773138666365,0.03,70926.0,70914.0,0.36261943]
[1773138667032,0.32839432,70926.0,70914.0,0.36261943]
[1773138667231,0.32839432,70926.0,70914.0,0.52967225]
[1773138667232,0.03,70926.0,70914.0,0.52967225]
[1773138667443,0.00498624,70928.0,70915.0,0.2921115]
[1773138668238,0.0002,70931.0,70916.0,0.07050595]
[1773138668458,0.29983432,70930.0,70916.0,0.07050595]
[1773138668660,0.30482056,70930.0,70916.0,0.07050595]
[1773138668969,0.29983432,70930.0,70915.0,0.45916432]
[1773138669177,0.03,70926.0,70916.0,0.16705282]
[1773138669369,0.32839432,70926.0,70916.0,0.16705282]
[1773138669599,0.32839432,70926.0,70918.0,0.16705282]
[1773138669768,0.08678586,70926.0,70917.0,0.16705282]
[1773138669972,0.09146202,70926.0,70917.0,0.16705282]
[1773138670227,0.00467616,70925.0,70917.0,0.16705282]
[1773138670460,0.00344022,70924.0,70918.0,0.16705282]
[1773138670606,0.00344022,70924.0,70917.0,0.23755741]
[1773138670821,0.00344022,70924.0,70916.0,0.07050543]
[1773138670822,0.00144,70923.0,70916.0,0.23755825]
[1773138671022,0.00144,70922.0,70916.0,0.23755825]
[1773138671200,0.00144,70921.0,70917.0,0.45916432]
[1773138671416,0.00144,70920.0,70917.0,0.45916432]
[1773138671615,0.29839432,70928.0,70917.0,0.2921115]
[1773138671824,0.03144,70927.0,70917.0,0.2921115]
[1773138672429,0.03144,70927.0,70919.0,0.07050296]
[1773138672695,0.03144,70927.0,70915.0,0.07050632]
[1773138672696,0.03,70925.0,70910.0,0.16879335]
[1773138672815,0.29839432,70918.0,70907.0,0.07051434]
[1773138673033,0.07049501,70929.0,70907.0,0.07051434]
[1773138673034,1e-08,70977.0,70937.0,0.37560883]
[1773138673229,0.29839433,70977.0,70966.0,0.554903]
[1773138673430,0.29839433,70977.0,70956.0,0.007364]
[1773138673431,0.29839432,70973.0,70956.0,0.007364]
[1773138673630,0.07188634,70976.0,70950.0,0.00023]
[1773138673631,0.00467616,70970.0,70950.0,0.00023]
[1773138673824,0.00467616,70970.0,70942.0,0.21057112]
[1773138673825,0.00467616,70966.0,70935.0,0.2921115]
[1773138674068,0.00023,70975.0,70935.0,0.2921115]
[1773138674069,0.03,70960.0,70935.0,0.2921115]